Workbook

Sheet oblast
A1: én
F6: Vševěd
F7: verze 20, poslední aktualizace: 04.03.2014 08:30
H10: Přehled produktů | K10: Výpočty

Sheet help
B1: číslo této verze | C1: 1
A3: VŽDY MUSÍ BÝT SEŘAZENO!!!! | B3: soubor | C3: aktuální verze | D3: adresa nové verze
A4: 1 | B4: hypotéky pro fyzické osoby | C4: 53
A5: 2 | B5: pojištění osob | C5: 49
A6: 3 | B6: Vševěd 2003 Partneři - kontaktní osoby, produkty, informace | C6: 10
A7: 4 | B7: penzijni spolecnosti | C7: 48
A8: 5 | B8: akce - stavební spořitelny | C8: 2
A9: 6 | B9: stavební spoření | C9: 60
A10: 7 | B10: portalOVB | C10: 3
A11: 8 | B11: statisticka data | C11: 4
A12: 9 | B12: Pojištění úvěru (ztráta zaměstnání) | C12: 6
A13: 10 | B13: investice | C13: 5
A14: 11 | B14: vševěd | C14: 21
A15: 12 | B15: pojištění vozidel | C15: 6
A16: 15 | B16: uvery pro BD, SVJ, obce | C16: 14
A17: 14 | B17: RFP | C17: -50
A18: 15 | B18: občanský majetek | C18: 4
A19: 16 | B19: Duchodova kalkulacka | C19: 1
A20: 17 | B20: Kalkulator_provizi | C20: 10
A21: 18 | B21: kalkulatory | C21: -1
A22: 19 | B22: vypovedi | C22: 4

Sheet Vypocty1
AE8: Důchod - věková kalkulačka r. 2012
AE9: Starobní důchod za splnění podmínky standardní doby pojištění | BB9: zdroj: MPSV
AE10: Datum narození | AL10: 1980-06-05
AE11: Jste žena? | AL11: ne
AE12: Počet dětí | AL12: 0
AE13: Počet roků do důchodu | AL13: =duchod!C61 -> 32 | AU13: důchodový věk | AV13: =duchod!C62& " let" -> 67 let | BC13: vznik nároku | BD13: =duchod!C63 -> 2047-12-05
AE17: Důchod - výpočet výše důchodu r. 2012
AE18: Kalkulačku pro výpočet přesné výše důchodu je ke stažení na | AW18: stránkách MPSV. | BC18: Tento výpočet je ovšem relevantní pouze pro osoby těsně před odchodem do důchodu.
AE19: U zbytku populace můžeme výši důchodu pouze odhadovat na základě výše a tendence náhradového poměru (poměr průměrného důchodu a průměrné hrubé mzdy).
AE20: V současné době (r. 2010) je náhradový poměr cca 40 %. Předpokládaný vývoj je takový, že by měl během dvaceti až třiceti let klesnout k hranici 30 %.
AE21: Výše náhradového poměru se liší podle výše příjmu. Situace by měla po verdiktu ÚS o změně výpočtu důchodů od září 2011 vypadat VELICE ZJEDNODUŠENĚ následovně:
AE23: hrubá | AH23: náhradový | AO23: Současná hrubá mzda | BE23: 30000 | BJ23: =IF(OR(BE27>0.4,BE27<0.2),"UPOZORNĚNÍ","") -> 
AE24: mzda | AH24: poměr (2011) | AO24: Počet roků do důchodu | BE24: 30 | BJ24: =IF(OR(BE27>0.4,BE27<0.2),"Očekává se, že u většiny penzistů bude v horizontu dvaceti až třiceti let náhradový poměr mezi 20 % až 40 %, zadali jste náhradový poměr mimo tento rosah. Zvažte prosím jeho výši.","") -> 
AE25: 20000 | AH25: 0.5 | AO25: Předpokládaná průměrná inflace | BE25: 0.015
AE26: 40000 | AH26: 0.33 | AO26: Mzda valorizovaná o inflaci při odchodu do důchodu | BE26: =BE23*((1+BE25)^BE24) -> 46892.40661
AE27: 80000 | AH27: 0.25 | AO27: Náhradový poměr | BE27: 0.35 | BI27: =IF(BE23>80000,0.2,IF(BE23>40000,0.25,0.35)) -> 0.35
AO28: Předpokládaný ORIENTAČNÍ důchod | BE28: =BE26*BE27 -> 16412.34232
AE33: invalidni duchod | AV33: MPSV, ale kalkulačka není
AE50: Podpora v nezaměstnanosti r. 2012
AE52: Průměrný čistý příjem | AL52: 20000 | AR52: výplata | AV52: do 50 let | AZ52: 50 - 55 let | BD52: nad 55 let | BN52: Zdroj: zákon 435/2004 o zaměstnanosti, §43 odst. 1, §50 odst. 3 a 6
AT53: 1. měsíc | AV53: =MIN(0.65*$AL$52,AL$54) -> 13000 | AZ53: =MIN(0.65*$AL$52,AL$54) -> 13000 | BD53: =MIN(0.65*$AL$52,AL$54) -> 13000
AE54: Max. výše pro rok 2012 | AL54: 13761 | AT54: 2. měsíc | AV54: =MIN(0.65*$AL$52,AL$54) -> 13000 | AZ54: =MIN(0.65*$AL$52,AL$54) -> 13000 | BD54: =MIN(0.65*$AL$52,AL$54) -> 13000
AT55: 3. měsíc | AV55: =MIN(0.5*$AL$52,AL$54) -> 10000 | AZ55: =MIN(0.5*$AL$52,AL$54) -> 10000 | BD55: =MIN(0.5*$AL$52,AL$54) -> 10000
AT56: 4. měsíc | AV56: =MIN(0.5*$AL$52,AL$54) -> 10000 | AZ56: =MIN(0.5*$AL$52,AL$54) -> 10000 | BD56: =MIN(0.5*$AL$52,AL$54) -> 10000
AT57: 5. měsíc | AV57: =MIN(0.45*$AL$52,AL$54) -> 9000 | AZ57: =MIN(0.45*$AL$52,AL$54) -> 9000 | BD57: =MIN(0.45*$AL$52,AL$54) -> 9000
AT58: 6. měsíc | AZ58: =MIN(0.45*$AL$52,AL$54) -> 9000 | BD58: =MIN(0.45*$AL$52,AL$54) -> 9000
AT59: 7. měsíc | AZ59: =MIN(0.45*$AL$52,AL$54) -> 9000 | BD59: 9000
AT60: 8. měsíc | AZ60: =MIN(0.45*$AL$52,AL$54) -> 9000 | BD60: 9000
AT61: 9. měsíc | BD61: 9000
AT62: 10. měsíc | BD62: 9000
AT63: 11. měsíc | BD63: 9000
AF75: nahrada mzdy od zamestnavatele prvnich 21 dni | AW75: zdroj: MPSV
AE96: Nemocenská r. 2012 | AO96: předpoklad: 8 hodin pracovní den, 30 dnů v měsíci, 172 pracovních hodin v měsíci
AE98: Průměrný hrubý příjem | AL98: 20000 | AR98: první 3 dny: | BC98: 0 | BF98: celkem za 1. měsíc: | BN98: =18*BB99+9*BB100 -> 13250.51163 | CD98: zdroj: MPSV
AR99: 4. až 21. kalendářní den: | BB99: =nemocenska!J38 -> 558.1395349 | BF99: za každý následující měsíc: | BN99: =30*BB100 -> 10680
AR100: každý následující kalendářní den: | BB100: =nemocenska!I20 -> 356

Sheet Vypocty2
AD7: Ve výpočtech nejsou zohledněny daně ani poplatky
AD8: Zhodnocení / znehodnocení investic (pravidelných i jednorázových) | AV8: Jaký bude nominál dnešní hodnoty? | BN8: Úročení vlastních zdrojů u produktů kde přispívá třetí strana (stát, zaměstnavatel, ..)
AD10: Jednorázový vklad na počátku | AP10: 0
AD11: Pravidelný měsíční vklad | AP11: 1000 | AV11: Dnešní hodnota | BH11: 15000 | BN11: Počet roků spoření | BZ11: 20
AD12: Počet roků investování | AP12: 1 | AV12: Počet roků | BH12: 30 | BN12: Vlastní měsíční vklad | BZ12: 1000
AD13: Průměrné roční zhodnocení | AP13: 1.2348 | AV13: Inflace | BH13: 0.02 | BN13: Měsíční příspěvek třetí strany | BZ13: 230
AD14: Výsledná suma | AP14: =FV(AP13/12,12*AP12,-AP11,-1*AP10,1) -> 23999.80334 | AV14: ="Nominál hodnoty " & TEXT(BH11,"# ###") & " za " & BH12 & " let" -> Nominál hodnoty 15 000 za 30 let | BH14: =-FV(BH13/12,12*BH12,0,BH11,1) -> 27318.13469 | BN14: Předpokládané zhodnocení produktu | BZ14: 0.03
AD15: Výnos | AP15: =AP14-AP10-AP12*12*AP11 -> 11999.80334 | BN15: Celkem vloženo z vlastních zdrojů | BZ15: =BZ12*BZ11*12 -> 240000 | CA15: =CA12*CA11*12 -> 0 | CB15: =CB12*CB11*12 -> 0 | CC15: =CC12*CC11*12 -> 0
AD16: Reálná hodnota při inflaci | AL16: 0.09 | AP16: =FV((AP13-AL16)/12,12*AP12,-AP11,-1*AP10,1) -> 22786.48589 | BN16: Výsledná naspořená suma | BZ16: =FV(BZ14/12,12*BZ11,-(BZ12+BZ13),0,1) -> 404820.9863 | CA16: =FV(CA14/12,12*CA11,-(CA12+CA13),0,1) -> 0 | CB16: =FV(CB14/12,12*CB11,-(CB12+CB13),0,1) -> 0 | CC16: =FV(CC14/12,12*CC11,-(CC12+CC13),0,1) -> 0
AD17: Rálný výnos po započtení inflace | AP17: =AP16-AP10-AP12*12*AP11 -> 10786.48589 | BN17: Skutečné úročení vlastních zdrojů | BZ17: =12*RATE(12*BZ11,-BZ12,,BZ16,1) -> 0.04832916706 | CA17: =12*RATE(12*CA11,-CA12,,CA16,1) ->  | CB17: =12*RATE(12*CB11,-CB12,,CB16,1) ->  | CC17: =12*RATE(12*CC11,-CC12,,CC16,1) -> 
AD18: Suma při valorizaci vkladu (orient.) | AP18: =splatky!S1 -> 26817.6
AD19: Reálná suma při valorizaci vkl. (orient.) | AP19: =splatky!V1 -> 25737.6
AD21: Kolik musím mít pro pravidelnou měsíční rentu | AV21: ="Kolik musím měsíčně spořit abych naspořil " & TEXT(AP27,"# ###")& " ?" -> Kolik musím měsíčně spořit abych naspořil 519 103 ? | BN21: Kolik musím jednorázově vložit? (vklad se nezmenšuje a na konci jej můžu vybrat v plné výši)
AD23: Výše požadované měsíční renty | AP23: 5000
AD24: Průměrné roční zhodnocení | AP24: 0.03 | AV24: Průměrné roční zhodnocení | BH24: 0.02
AD25: Chci aby mi na konci zbylo | AP25: 0 | AV25: Jednorázový vklad na počátku | BH25: 0 | BN25: Výše požadovaných měsíčních výnosů | BZ25: 1000
AD26: Počet let pobírání renty | AP26: 10 | AV26: Počet roků investování | BH26: 30 | BN26: Průměrné roční zhodnocení | BZ26: 0.1
AD27: Potřebná suma | AP27: =-PV(AP24/12,AP26*12,AP23,AP25,1) -> 519103.2873 | AV27: Pravidelný měsíční vklad | BH27: =-PMT(BH24/12,BH26*12,-BH25,AP27,1) -> 1051.781718 | BN27: Výše potřebného vkladu | BZ27: =12*BZ25/BZ26 -> 120000
AD33: Kolik musím měsíčně spořit abych naspořil požadovanou sumu? | AV33: Jak vysoká bude měsíční renta z naspořené sumy? | BN33: Kolik let můžu z naspořené sumy pobírat rentu?
AD35: Požadovaná suma | AP35: 1000000 | AV35: Naspořená suma | BH35: 1000000 | BN35: Naspořená suma | BZ35: 1000000
AD36: Průměrné roční zhodnocení | AP36: 0.02 | AV36: Průměrné roční zhodnocení | BH36: 0.04 | BN36: Průměrné roční zhodnocení | BZ36: 0.04
AD37: Jednorázový vklad na počátku | AP37: 2000 | AV37: Chci aby mi na konci zbylo | BH37: 500000 | BN37: Chci aby mi na konci zbylo | BZ37: 0
AD38: Počet roků investování | AP38: 10 | AV38: Počet let pobírání renty | BH38: 20 | BN38: Pravidelný měsíční renta | BZ38: 5261
AD39: Pravidelný měsíční vklad | AP39: =-PMT(AP36/12,AP38*12,-AP37,AP35,1) -> 7503.769744 | AV39: Pravidelný měsíční renta | BH39: =PMT(BH36/12,BH38*12,-BH35,BH37,1) -> 4680.965096 | BN39: Počet let pobírání renty | BZ39: =NPER(BZ36/12,BZ38,-BZ35,BZ37,1)/12 -> 24.99863202
AD40: Zohlednění inflace ve výši | AP40: 0.015
AD41: Vklad valorizovaný o inflaci (orient.) | AP41: 625.3141453
AD42: ="Nominál hodnoty " & TEXT(AP35,"# ###") & " za " & AP38 & " let" -> Nominál hodnoty 1 000 000 za 10 let | AP42: =-FV(AP40/12,12*AP38,0,AP35,1) -> 1161725.417
AD43: ="Pravidelný měsíční vklad pro "& TEXT(AP42,"# ###") -> Pravidelný měsíční vklad pro 1 161 725 | AP43: =-PMT(AP36/12,AP38*12,-AP37,AP42,1) -> 8720.291262
AD44: Vklad valorizovaný o inflaci (orient.) | AP44: 8100.291262

Sheet Vypocty3
A1: 0
AC10: Anuitní splácení úvěru
AC12: Výše úvěru | AN12: 0
AC13: Počet let splácení | AN13: 0
AC14: Úrok p.a. | AN14: 0
AC15: Měsíční splátka | AN15: =IF(OR(AN14=0,AN13=0,AN12=0),0,PMT(AN14/12,AN13*12,AN12)*-1) -> 0 | BB15: Součet splátek: | BC15: =AN15*12*AN13 -> 0
AC42: Jistina na konci roku č.
AC43: 1 | AF43: =VLOOKUP(AC43*12,splatky!Y7:AC600,5) -> 
AC44: 2 | AF44: =VLOOKUP(AC44*12,splatky!Y8:AC601,5) -> 
AC45: 3 | AF45: =IF(AF44<1,0,VLOOKUP(AC45*12,splatky!Y9:AC602,5)) -> 
AC46: 4 | AF46: =IF(AF45<1,0,VLOOKUP(AC46*12,splatky!Y10:AC603,5)) -> 
AC47: 5 | AF47: =IF(AF46<1,0,VLOOKUP(AC47*12,splatky!Y11:AC604,5)) -> 
AC48: =IF(OR(AF47=0,AC47=-1,AN$13=AC47),-1,AC47+1) ->  | AF48: =IF(AC48=-1,-1,VLOOKUP(AC48*12,splatky!Y12:AC605,5)) -> 
AC49: =IF(OR(AF48=0,AC48=-1,AN$13=AC48),-1,AC48+1) ->  | AF49: =IF(AC49=-1,-1,VLOOKUP(AC49*12,splatky!Y13:AC606,5)) -> 
AF50: =IF(AC50=-1,-1,VLOOKUP(AC50*12,splatky!Y14:AC607,5)) -> 
AF51: =IF(AC51=-1,-1,VLOOKUP(AC51*12,splatky!Y15:AC608,5)) -> 
AF52: =IF(AC52=-1,-1,VLOOKUP(AC52*12,splatky!Y16:AC609,5)) -> 
AF53: =IF(AC53=-1,-1,VLOOKUP(AC53*12,splatky!Y17:AC610,5)) -> 
AF54: =IF(AC54=-1,-1,VLOOKUP(AC54*12,splatky!Y18:AC611,5)) -> 
AF55: =IF(AC55=-1,-1,VLOOKUP(AC55*12,splatky!Y19:AC612,5)) -> 
AF56: =IF(AC56=-1,-1,VLOOKUP(AC56*12,splatky!Y20:AC613,5)) -> 
AF57: =IF(AC57=-1,-1,VLOOKUP(AC57*12,splatky!Y21:AC614,5)) -> 
AF58: =IF(AC58=-1,-1,VLOOKUP(AC58*12,splatky!Y22:AC615,5)) -> 
AF59: =IF(AC59=-1,-1,VLOOKUP(AC59*12,splatky!Y23:AC616,5)) -> 
AF60: =IF(AC60=-1,-1,VLOOKUP(AC60*12,splatky!Y24:AC617,5)) -> 
AC61: =IF(OR(AF60=0,AC60=-1,AN$13=AC60),-1,AC60+1) ->  | AF61: =IF(AC61=-1,-1,VLOOKUP(AC61*12,splatky!Y25:AC618,5)) -> 
AF62: =IF(AC62=-1,-1,VLOOKUP(AC62*12,splatky!Y26:AC619,5)) -> 
AF63: =IF(AC63=-1,-1,VLOOKUP(AC63*12,splatky!Y27:AC620,5)) -> 
AF64: =IF(AC64=-1,-1,VLOOKUP(AC64*12,splatky!Y28:AC621,5)) -> 
AF65: =IF(AC65=-1,-1,VLOOKUP(AC65*12,splatky!Y29:AC622,5)) -> 
AF66: =IF(AC66=-1,-1,VLOOKUP(AC66*12,splatky!Y30:AC623,5)) -> 
AF67: =IF(AC67=-1,-1,VLOOKUP(AC67*12,splatky!Y31:AC624,5)) -> 
AF68: =IF(AC68=-1,-1,VLOOKUP(AC68*12,splatky!Y32:AC625,5)) -> 
AF69: =IF(AC69=-1,-1,VLOOKUP(AC69*12,splatky!Y33:AC626,5)) -> 
AF70: =IF(AC70=-1,-1,VLOOKUP(AC70*12,splatky!Y34:AC627,5)) -> 
AF71: =IF(AC71=-1,-1,VLOOKUP(AC71*12,splatky!Y35:AC628,5)) -> 
AF72: =IF(AC72=-1,-1,VLOOKUP(AC72*12,splatky!Y36:AC629,5)) -> 
AF73: =IF(AC73=-1,-1,VLOOKUP(AC73*12,splatky!Y37:AC630,5)) -> 
AC74: =IF(OR(AF73=0,AC73=-1,AN$13=AC73),-1,AC73+1) ->  | AF74: =IF(AC74=-1,-1,VLOOKUP(AC74*12,splatky!Y38:AC631,5)) -> 
AC75: =IF(OR(AF74=0,AC74=-1,AN$13=AC74),-1,AC74+1) ->  | AF75: =IF(AC75=-1,-1,VLOOKUP(AC75*12,splatky!Y39:AC632,5)) -> 
AF76: =IF(AC76=-1,-1,VLOOKUP(AC76*12,splatky!Y40:AC633,5)) -> 
AF77: =IF(AC77=-1,-1,VLOOKUP(AC77*12,splatky!Y41:AC634,5)) -> 
AF78: =IF(AC78=-1,-1,VLOOKUP(AC78*12,splatky!Y42:AC635,5)) -> 
AF79: =IF(AC79=-1,-1,VLOOKUP(AC79*12,splatky!Y43:AC636,5)) -> 
AF80: =IF(AC80=-1,-1,VLOOKUP(AC80*12,splatky!Y44:AC637,5)) -> 
AF81: =IF(AC81=-1,-1,VLOOKUP(AC81*12,splatky!Y45:AC638,5)) -> 
AC82: =IF(OR(AC81=-1,AN$13=AC81),-1,AC81+1) ->  | AF82: =IF(AC82=-1,-1,VLOOKUP(AC82*12,splatky!Y46:AC639,5)) -> 

Sheet splatky
F1: =Vypocty2!AP39 -> 7503.769744 | G1: =Vypocty2!AP40 -> 0.015 | H1: =VLOOKUP(I1,A4:I63,9) -> 91916.94158 | I1: =Vypocty2!AP38 -> 10 | K1: =12*Vypocty2!AP43 -> 104643.4951 | L1: =Vypocty2!AP40 -> 0.015 | M1: =VLOOKUP(N1,A4:N63,14) -> 1161544.311 | N1: =Vypocty2!AP38 -> 10 | Q1: =Vypocty2!AP14 -> 23999.80334 | R1: =Vypocty2!AL16 -> 0.09 | S1: =VLOOKUP(T1,A4:T63,20) -> 26817.6 | T1: =Vypocty2!AP12 -> 1 | V1: =VLOOKUP(T1,A4:V63,22) -> 25737.6 | Y1: Hypoteka | Z1: =Vypocty3!AN12 -> 0 | AA1: polovina času | AB1: =Z2/2 -> 0 | AC1: 0 | AD1: polovina času | AE1: =Z2*12/2 -> 0 | AF1: 0
F2: =F4/12 -> 625.3141453 | G2: =Vypocty2!AP36 -> 0.02 | H2: =Vypocty2!AP35 -> 1000000 | K2: =K4/12 -> 8100.291262 | L2: =Vypocty2!AP36 -> 0.02 | M2: =Vypocty2!AP42 -> 1161725.417 | R2: =Vypocty2!AP13 -> 1.2348 | Y2: roky splácení | Z2: =CEILING(Vypocty3!AN13,1) -> 0 | AB2: =AB1 -> 0 | AC2: =Z1 -> 0 | AE2: =AE1 -> 0 | AF2: =Z4 -> 0
Y3: úrok | Z3: =Vypocty3!AN14 -> 0 | AA3: polovina sumy | AB3: 0 | AC3: =Z1/2 -> 0 | AD3: polovina sumy | AE3: 0 | AF3: =Z4/2 -> 0
A4: 1 | F4: 7503.769744 | G4: =Vypocty2!AP37 -> 2000 | H4: =(F4+G4)*G2 -> 190.0753949 | I4: =F4+G4+H4 -> 9693.845139 | K4: 97203.49515 | L4: =Vypocty2!AP37 -> 2000 | M4: =(K4+L4)*L2 -> 1984.069903 | N4: =K4+L4+M4 -> 101187.565 | Q4: =12*Vypocty2!AP11 -> 12000 | R4: =Vypocty2!AP10 -> 0 | S4: =(Q4+R4)*R2 -> 14817.6 | T4: =Q4+R4+S4 -> 26817.6 | U4: =(Q4+R4)*(R2-R1) -> 13737.6 | V4: =Q4+R4+U4 -> 25737.6 | Y4: měsíční splátka | Z4: =Vypocty3!AN15 -> 0 | AB4: =Z2*12 -> 0 | AC4: =AC3 -> 0 | AE4: =Z2*12 -> 0 | AF4: =AF3 -> 0
A5: 2 | F5: =F4*(1+G$1) -> 7616.32629 | H5: =(I4+F5)*G$2 -> 346.2034286 | I5: =I4+F5+H5 -> 17656.37486 | K5: =K4*(1+L$1) -> 98661.54757 | M5: =(N4+K5)*L$2 -> 3996.982252 | N5: =N4+K5+M5 -> 203846.0949 | Q5: =Q4*(1+R$1) -> 13080 | S5: =(T4+Q5)*R$2 -> 49265.55648 | T5: =T4+Q5+S5 -> 89163.15648 | U5: =(V4+Q5)*(R$2-R$1) -> 44438.38848 | V5: =V4+Q5+U5 -> 83255.98848 | Y5: měsíc | Z5: Měsíční splátka | AA5: Jistina | AB5: úrok
A6: 3 | F6: 7730.571184 | H6: 507.7389208 | I6: =I5+F6+H6 -> 25894.68496 | K6: 100141.4708 | M6: 6079.751313 | N6: =N5+K6+M6 -> 310067.317 | Q6: =Q5*(1+R$1) -> 14257.2 | S6: =(T5+Q6)*R$2 -> 127703.4562 | T6: =T5+Q6+S6 -> 231123.8127 | U6: =(V5+Q6)*(R$2-R$1) -> 111633.0982 | V6: =V5+Q6+U6 -> 209146.2867 | Y6: 0 | AC6: =Z1 -> 0 | AE6: 0 | AF6: =ROUND(VLOOKUP(AE6*12,Y6:AC599,5),0) -> 0
A7: 4 | F7: 7846.529752 | H7: 674.8242943 | I7: 34416.03901 | K7: 101643.5928 | M7: 8234.218197 | N7: 419945.128 | Q7: 15540.348 | S7: 304580.9056 | T7: =T6+Q7+S7 -> 551245.0662 | U7: 257221.2593 | V7: 481907.894 | Y7: 1 | Z7: =Z$4 -> 0 | AA7: =-PPMT(Z$3/12,Y7,Z$2*12,Z$1) ->  | AB7: =Z7-AA7 ->  | AC7: =AC6-AA7 ->  | AE7: 1
A8: 5 | F8: 7964.227698 | H8: 847.6053342 | I8: 43227.87204 | K8: 103168.2467 | M8: 10462.2675 | N8: 533575.6423 | Q8: 16938.97932 | S8: 701593.6595 | T8: 1269777.705 | U8: 571079.9006 | V8: 1069926.774 | Y8: 2 | Z8: =Z$4 -> 0 | AA8: =-PPMT(Z$3/12,Y8,Z$2*12,Z$1) ->  | AB8: =Z8-AA8 ->  | AC8: =AC7-AA8 ->  | AE8: 2
A9: 6 | F9: 8083.691114 | H9: 1026.231263 | I9: 52337.79442 | K9: 104715.7704 | M9: 12765.82825 | N9: 651057.241 | Q9: =Q8*(1+R$1) -> 18463.48746 | S9: 1590720.224 | T9: 2878961.417 | U9: 1245989.171 | V9: 2334379.433 | Y9: 3 | Z9: =Z$4 -> 0 | AE9: 3
A10: 7 | F10: 8204.946481 | H10: 1210.854818 | I10: 61753.59572 | K10: 106286.507 | M10: 15146.87496 | N10: 772490.6229 | Q10: 20125.20133 | S10: 3579792.156 | T10: 6478878.775 | U10: 2695436.905 | V10: 5049941.539 | Y10: 4 | Z10: 0 | AE10: 4
A11: 8 | F11: 8328.020678 | H11: 1401.632328 | I11: 71483.24872 | K11: 107880.8046 | M11: 17607.42855 | N11: 897978.8561 | Q11: 21936.46945 | S11: 8027206.663 | T11: 14528021.91 | U11: 5806285.944 | V11: 10878163.95 | Y11: 5 | Z11: 0 | AE11: 5
A12: 9 | F12: 8452.940988 | H12: 1598.723794 | I12: 81534.91351 | K12: 109499.0167 | M12: 20149.55745 | N12: 1027627.43 | Q12: 23910.7517 | S12: 17968726.45 | T12: 32520659.11 | U12: 12480695.12 | V12: 23382769.82 | Y12: 6 | Z12: 0 | AE12: 6
A13: 10 | F13: 8579.735103 | H13: 1802.292972 | I13: 91916.94158 | K13: 111141.5019 | M13: 22775.37864 | N13: 1161544.311 | Q13: 26062.71935 | S13: 40188692.11 | T13: 72735413.94 | U13: 26798431.5 | V13: 50207264.04 | Y13: 7 | Z13: 0 | AE13: 7
A14: 11 | F14: 8708.431129 | H14: 2012.507454 | I14: 102637.8802 | K14: 112808.6245 | M14: 25487.0587 | N14: 1299839.994 | Q14: 28408.3641 | S14: 89848767.78 | T14: 162612590.1 | U14: 57509797.77 | V14: 107745470.2 | Y14: 8 | Z14: 0 | AE14: 8
A15: 12 | F15: 8839.057596 | H15: 2229.538755 | I15: 113706.4765 | K15: 114500.7538 | M15: 28286.81495 | N15: 1442627.563 | Q15: 30965.11686 | S15: 200832262 | T15: 363475817.1 | U15: 123382463.1 | V15: 231158898.4 | Y15: 9 | Z15: 0 | AE15: 9
A16: 13 | F16: 8971.64346 | H16: 2453.5624 | I16: 125131.6824 | K16: 116218.2651 | M16: 31176.91656 | N16: 1590022.744 | Q16: 33751.97738 | S16: 448861616 | T16: 812371185.1 | U16: 264669346.2 | V16: 495861996.5 | Y16: 10 | Z16: 0 | AE16: 10
A17: 14 | F17: 9106.218112 | H17: 2684.75801 | I17: 136922.6585 | K17: 117961.5391 | M17: 34159.68567 | N17: 1742143.969 | Q17: 36789.65535 | S17: 1003161367 | T17: 1815569342 | U17: 567704930.4 | V17: 1063603717 | Y17: 11 | Z17: 0 | AE17: 11
A18: 15 | F18: 9242.811384 | H18: 2923.309398 | I18: 149088.7793 | K18: 119730.9622 | M18: 37237.49863 | N18: 1899112.43 | Q18: 40100.72433 | S18: 2241914540 | T18: 4057523982 | U18: 1217659442 | V18: 2281303260 | Y18: 12 | Z18: 0 | AE18: 12
A19: 16 | F19: 9381.453555 | H19: 3169.404657 | I19: 161639.6375 | K19: 121526.9266 | M19: 40412.78713 | N19: 2061052.144 | Q19: 43709.78952 | S19: 5010284586 | T19: 9067852279 | U19: 2611686010 | V19: 4893032980 | Y19: 13 | Z19: 0 | AE19: 13
A20: 17 | F20: 9522.175358 | H20: 3423.236257 | I20: 174585.0491 | K20: 123349.8305 | M20: 43688.03948 | N20: 2228090.014 | Q20: 47643.67057 | S20: 1.119704282e+10 | T20: 2.026494275e+10 | U20: 5601598698 | V20: 1.049467932e+10 | Y20: 14 | Z20: 0 | AE20: 14
A21: 18 | F21: 9665.007988 | H21: 3685.001142 | I21: 187935.0582 | K21: 125200.078 | M21: 47065.80183 | N21: 2400355.894 | Q21: 51931.60092 | S21: 2.502321543e+10 | T21: 4.528821011e+10 | U21: 1.201436834e+10 | V21: 2.250909959e+10 | Y21: 15 | Z21: 0 | AA21: =-PPMT(Z$3/12,Y21,Z$2*12,Z$1) ->  | AB21: =Z21-AA21 ->  | AE21: 15
A22: 19 | F22: 9809.983108 | H22: 3954.900827 | I22: 201699.9422 | K22: 127078.0791 | M22: 50548.67945 | N22: 2577982.652 | Q22: 56605.44501 | S22: 5.592195174e+10 | T22: 1.012102184e+11 | U22: 2.576848201e+10 | V22: 4.827763821e+10 | Y22: 16 | Z22: 0 | AE22: 16
A23: 20 | F23: 9957.132855 | H23: 4233.141501 | I23: 215890.2165 | K23: 128984.2503 | M23: 54139.33805 | N23: 2761106.241 | Q23: 61699.93506 | S23: 1.249744539e+11 | T23: 2.261847341e+11 | U23: 5.526831086e+10 | V23: 1.035460108e+11 | Y23: 17 | Z23: 0 | AE23: 17
A24: 21 | F24: 10106.48985 | H24: 4519.934127 | I24: 230516.6405 | K24: 130919.0141 | M24: 57840.50509 | N24: 2949865.76 | Q24: 67252.92921 | S24: 2.792929927e+11 | T24: 5.05477794e+11 | U24: 1.185395501e+11 | V24: 2.220856281e+11 | Y24: 18 | Z24: 0 | AE24: 18
A25: 22 | F25: 10258.0872 | H25: 4815.494554 | I25: 245590.2223 | K25: 132882.7993 | M25: 61654.97118 | N25: 3144403.53 | Q25: 73305.69284 | S25: 6.241640706e+11 | T25: 1.129641938e+12 | U25: 2.54243711e+11 | V25: 4.763294125e+11 | Y25: 19 | Z25: 0 | AE25: 19
A26: 23 | F26: 10411.9585 | H26: 5120.043615 | I26: 261122.2244 | K26: 134876.0413 | M26: 65585.59143 | N26: 3344865.163 | Q26: 79903.2052 | S26: 1.394881964e+12 | T26: 2.524523981e+12 | U26: 5.453020028e+11 | V26: 1.021631495e+12 | Y26: 20 | Z26: 0 | AE26: 20
A27: 24 | F27: 10568.13788 | H27: 5433.807245 | I27: 277124.1695 | K27: 136899.1819 | M27: 69635.2869 | N27: 3551399.632 | Q27: 87094.49367 | S27: 3.11728232e+12 | T27: 5.641806388e+12 | U27: 1.169563835e+12 | V27: 2.191195418e+12 | Y27: 21 | Z27: 0 | AE27: 21
A28: 25 | F28: 10726.65995 | H28: 5757.016589 | I28: 293607.846 | K28: 138952.6696 | M28: 73807.04603 | N28: 3764159.347 | Q28: 94932.9981 | S28: 6.966502645e+12 | T28: 1.260830913e+13 | U28: 2.508480623e+12 | V28: 4.699676136e+12 | Y28: 22 | Z28: 0 | AE28: 22
A29: 26 | F29: 10887.55985 | H29: 6089.908118 | I29: 310585.314 | K29: 141036.9597 | M29: 78103.92614 | N29: 3983300.233 | Q29: 103476.9679 | S29: 1.556874024e+13 | T29: 2.817704947e+13 | U29: 5.380189358e+12 | V29: 1.00798656e+13 | Y29: 23 | Z29: 0 | AE29: 23
A30: 27 | F30: 11050.87325 | H30: 6432.723745 | I30: 328068.911 | K30: 143152.5141 | M30: 82529.05495 | N30: 4208981.802 | Q30: 112789.895 | S30: 3.479302083e+13 | T30: 6.297007041e+13 | U30: 1.153943027e+13 | V30: 2.161929598e+13 | Y30: 24 | Z30: 0 | AE30: 24
A31: 28 | F31: 11216.63634 | H31: 6785.710947 | I31: 346071.2583 | K31: 145299.8018 | M31: 87085.63208 | N31: 4441367.236 | Q31: 122940.9856 | S31: 7.775544309e+13 | T31: 1.407255136e+14 | U31: 2.474977017e+13 | V31: 4.636906627e+13 | Y31: 25 | Z31: 0 | AE31: 25
A32: 29 | F32: 11384.88589 | H32: 7149.122883 | I32: 364605.2671 | K32: 147479.2988 | M32: 91776.9307 | N32: 4680623.466 | Q32: 134005.6743 | S32: 1.737678644e+14 | T32: 314493378152710 | U32: 5.308330722e+13 | V32: 9.945237363e+13 | Y32: 26 | Z32: 0 | AE32: 26
A33: 30 | F33: 11555.65918 | H33: 7523.218525 | I33: 383684.1448 | K33: 149691.4883 | M33: 96606.29908 | N33: 4926921.253 | Q33: 146066.185 | S33: 3.883364235e+14 | T33: 702829801822105 | U33: 1.138530775e+14 | V33: 2.133054513e+14 | Y33: 27 | Z33: 0 | AE33: 27
A34: 31 | F34: 11728.99407 | H34: 7908.262776 | I34: 403321.4016 | K34: 151936.8606 | M34: 101577.1623 | N34: 5180435.276 | Q34: 159212.1416 | S34: 8.678542395e+14 | T34: 1.570684041e+15 | U34: 2.441920808e+14 | V34: 4.574975322e+14 | Y34: 28 | Z34: 0 | AE34: 28
A35: 32 | F35: 11904.92898 | H35: 8304.526611 | I35: 423530.8572 | K35: 154215.9135 | M35: 106693.0238 | N35: 5441344.213 | Q35: 173541.2344 | S35: 1.939480655e+15 | T35: 3.510164696e+15 | U35: 5.237431751e+14 | V35: 981240707472266 | Y35: 29 | Z35: 0 | AE35: 29
A36: 33 | F36: 12083.50291 | H36: 8712.287202 | I36: 444326.6473 | K36: 156529.1522 | M36: 111957.4673 | N36: 5709830.833 | Q36: 189159.9455 | S36: 4334351367175639 | T36: 7844516063624974 | U36: 1.123324362e+15 | V36: 2.10456507e+15 | Y36: 30 | Z36: 0 | AE36: 30
A37: 34 | F37: 12264.75546 | H37: 9131.828055 | I37: 465723.2308 | K37: 158877.0895 | M37: 117374.1584 | N37: 5986082.081 | Q37: 206184.3406 | S37: 9686408435618714 | T37: 1.75309245e+16 | U37: 2409306092134180 | V37: 4513871162132590 | Y37: 31 | Z37: 0 | AE37: 31
A38: 35 | F38: 12448.72679 | H38: 9563.439152 | I38: 487735.3967 | K38: 161260.2459 | M38: 122946.8465 | N38: 6270289.173 | Q38: 224740.9312 | S38: 2.164718557e+16 | T38: 3.917811007e+16 | U38: 5167479706666672 | V38: 9681350869024004 | Y38: 32 | Z38: 0 | AE38: 32
A39: 36 | F39: 12635.45769 | H39: 10007.41709 | I39: 510378.2715 | K39: 163679.1496 | M39: 128679.3665 | N39: 6562647.689 | Q39: 244967.615 | S39: 4.837713032e+16 | T39: 8.755524039e+16 | U39: 1.108321048e+16 | V39: 2.076456134e+16 | Y39: 33 | Z39: 0 | AE39: 33
A40: 37 | F40: 12824.98955 | H40: 10464.06522 | I40: 533667.3263 | K40: 166134.3368 | M40: 134575.6405 | N40: 6863357.666 | Q40: 267014.7004 | S40: 1.081132108e+17 | T40: 1.956684512e+17 | U40: 2.377126983e+16 | V40: 4.453583117e+16 | Y40: 34 | Z40: 0 | AE40: 34
A41: 38 | F41: 13017.3644 | H41: 10933.69381 | I41: 557618.3845 | K41: 168626.3518 | M41: 140639.6804 | N41: 7172623.699 | Q41: 291046.0234 | S41: 2.416114036e+17 | T41: 4.372798548e+17 | U41: 5.098461953e+16 | V41: 9.55204507e+16 | Y41: 35 | Z41: 0 | AE41: 35
A42: 39 | F42: 13212.62486 | H42: 11416.62019 | I42: 582247.6296 | K42: 171155.7471 | M42: 146875.5889 | N42: 7490655.035 | Q42: 317240.1655 | S42: 5.399531647e+17 | T42: 9.772330195e+17 | U42: 1.09351812e+17 | V42: 2.048722627e+17 | Y42: 36 | Z42: 0 | AE42: 36
A43: 40 | F43: 13410.81424 | H43: 11913.16888 | I43: 607571.6127 | K43: 173723.0833 | M43: 153287.5624 | N43: 7817665.68 | Q43: 345791.7804 | S43: 1.206687332e+18 | T43: 2.183920352e+18 | U43: 2.345377663e+17 | V43: 4.39410029e+17 | Y43: 37 | Z43: 0 | AE43: 37
A44: 41 | F44: 13611.97645 | H44: 12423.67178 | I44: 633607.2609 | K44: 176328.9296 | M44: 159879.8922 | N44: 8153874.502 | Q44: 376913.0406 | S44: 2.696704851e+18 | T44: 4.880625203e+18 | U44: 5.030366011e+17 | V44: 9.424466301e+17 | Y44: 38 | Z44: 0 | AE44: 38
A45: 42 | F45: 13816.1561 | H45: 12948.46834 | I45: 660371.8853 | K45: 178973.8635 | M45: 166656.9673 | N45: 8499505.333 | Q45: 410835.2143 | S45: 6.026596e+18 | T45: 1.09072212e+19 | U45: 1.078912902e+18 | V45: 2.021359532e+18 | Y45: 39 | Z45: 0 | AE45: 39
A46: 43 | F46: 14023.39844 | H46: 13487.90568 | I46: 687883.1895 | K46: 181658.4715 | M46: 173623.2761 | N46: 8854787.081 | Q46: 447810.3836 | S46: 1.346823674e+19 | T46: 2.437545794e+19 | U46: 2.314052392e+18 | V46: 4.335411925e+18 | Y46: 40 | Z46: 0 | AE46: 40
A47: 44 | F47: 14233.74941 | H47: 14042.33878 | I47: 716159.2777 | K47: 184383.3486 | M47: 180783.4086 | N47: 9219953.838 | Q47: 488113.3181 | S47: 3.009881547e+19 | T47: 5.447427341e+19 | U47: 4.963179571e+18 | V47: 9.298591496e+18 | Y47: 41 | Z47: 0
A48: 45 | F48: 14447.25566 | H48: 14612.13067 | I48: 745218.664 | K48: 187149.0988 | M48: 188142.0587 | N48: 9595244.995 | Q48: 532043.5167 | S48: 6.726483281e+19 | T48: 1.217391062e+20 | U48: 1.064502754e+19 | V48: 1.994361904e+19 | Y48: 42 | Z48: 0
A49: 46 | F49: 14663.96449 | H49: 15197.65257 | I49: 775080.281 | K49: 189956.3353 | M49: 195704.0266 | N49: 9980905.357 | Q49: 579927.4333 | S49: 1.503234484e+20 | T49: 2.720625546e+20 | U49: 2.283145508e+19 | V49: 4.277507412e+19 | Y49: 43 | Z49: 0
A50: 47 | F50: 14883.92396 | H50: 15799.2841 | I50: 805763.4891 | K50: 192805.6803 | M50: 203474.2207 | N50: 10377185.26 | Q50: 632120.9022 | S50: 3.359428424e+20 | T50: 6.08005397e+20 | U50: 4.896890485e+19 | V50: 9.174397897e+19 | Y50: 44 | Z50: 0
A51: 48 | F51: 15107.18282 | H51: 16417.41344 | I51: 837288.0853 | K51: 195697.7655 | M51: 211457.6605 | N51: 10784340.68 | Q51: 689011.7835 | S51: 7.507650642e+20 | T51: 1.358770461e+21 | U51: 1.050285071e+20 | V51: 1.967724861e+20 | Y51: 45 | Z51: 0
A52: 49 | F52: 15333.79056 | H52: 17052.43752 | I52: 869674.3134 | K52: 198633.232 | M52: 219659.4783 | N52: 11202633.39 | Q52: 751022.844 | S52: 1.677809765e+21 | T52: 3.036580227e+21 | U52: 2.252651421e+20 | V52: 4.220376282e+20 | Y52: 46 | Z52: 0
A53: 50 | F53: 15563.79742 | H53: 17704.76222 | I53: 902942.8731 | K53: 201612.7305 | M53: 228084.9225 | N53: 11632331.05 | Q53: 818614.8999 | S53: 3.749569264e+21 | T53: 6.786149491e+21 | U53: 4.831486767e+20 | V53: 9.051863049e+20 | Y53: 47 | Z53: 0
A54: 51 | F54: 15797.25438 | H54: 18374.80255 | I54: 937114.93 | K54: 204636.9214 | M54: 236739.3594 | N54: 12073707.33 | Q54: 892290.2409 | S54: 8.379537391e+21 | T54: 1.516568688e+22 | U54: 1.036257282e+21 | V54: 1.941443587e+21 | Y54: 48 | Z54: 0
A55: 52 | F55: 16034.2132 | H55: 19062.98286 | I55: 972212.126 | K55: 207706.4752 | M55: 245628.2761 | N55: 12527042.08 | Q55: 972596.3626 | S55: 1.872659016e+22 | T55: 3.389227704e+22 | U55: 2.222564618e+21 | V55: 4.164008205e+21 | Y55: 49 | Z55: 0
A56: 53 | F56: 16274.72639 | H56: 19769.73705 | I56: 1008256.589 | K56: 210822.0724 | M56: 254757.283 | N56: 12992621.43 | Q56: 1060130.035 | S56: 4.185018369e+22 | T56: 7.574246074e+22 | U56: 4.766956593e+21 | V56: 8.930964798e+21 | Y56: 50 | Z56: 0
A57: 54 | F57: 16518.84729 | H57: 20495.50874 | I57: 1045270.946 | K57: 213984.4034 | M57: 264132.1168 | N57: 13470737.96 | Q57: 1155541.738 | S57: 9.352679052e+22 | T57: 1.692692513e+23 | U57: 1.02241685e+22 | V57: 1.91551333e+22 | Y57: 51 | Z57: 0
A58: 55 | F58: 16766.63 | H58: 21240.75151 | I58: 1083278.327 | K58: 217194.1695 | M58: 273758.6425 | N58: 13961690.77 | Q58: 1259540.495 | S58: 2.090136714e+23 | T58: 3.782829227e+23 | U58: 2.19287966e+22 | V58: 4.10839299e+22 | Y58: 52 | Z58: 0
A59: 56 | F59: 17018.12945 | H59: 22005.92913 | I59: 1122302.386 | K59: 220452.082 | M59: 283642.857 | N59: 14465785.71 | Q59: 1372899.139 | S59: 4.671037529e+23 | T59: 8.453866756e+23 | U59: 4.703288295e+22 | V59: 8.811681285e+22 | Y59: 53 | Z59: 0
A60: 57 | F60: 17273.40139 | H60: 22791.51574 | I60: 1162367.303 | K60: 223758.8633 | M60: 293790.8914 | N60: 14983335.46 | Q60: 1496460.062 | S60: 1.043883467e+24 | T60: 1.889270143e+24 | U60: 1.008761273e+23 | V60: 1.889929402e+23 | Y60: 54 | Z60: 0
A61: 58 | F61: 17532.50241 | H61: 23597.9961 | I61: 1203497.801 | K61: 227115.2462 | M61: 304209.0141 | N61: 15514659.72 | Q61: 1631141.468 | S61: 2.332870772e+24 | T61: 4.222140915e+24 | U61: 2.163591179e+23 | V61: 4.053520581e+23 | Y61: 55 | Z61: 0
A62: 59 | F62: 17795.48995 | H62: 24425.86582 | I62: 1245719.157 | K62: 230521.9749 | M62: 314903.6339 | N62: 16060085.33 | Q62: 1777944.2 | S62: 5.213499602e+24 | T62: 9.435640517e+24 | U62: 4.640470361e+23 | V62: 8.693990943e+23 | Y62: 56 | Z62: 0
A63: 60 | F63: 18062.4223 | H63: 25275.63159 | I63: 1289057.211 | K63: 233979.8045 | M63: 325881.3027 | N63: 16619946.44 | Q63: 1937959.178 | S63: 1.165112891e+25 | T63: 2.108676943e+25 | U63: 9.952880831e+23 | V63: 1.864687177e+24 | Y63: 57 | Z63: 0
Y64: 58 | Z64: 0
Y65: 59 | Z65: 0
Y66: 60 | Z66: 0
Y67: 61 | Z67: 0
Y68: 62 | Z68: 0
Y69: 63 | Z69: 0
Y70: 64 | Z70: 0
Y71: 65 | Z71: 0
Y72: 66 | Z72: 0 | AC72: =AC71-AA72 -> 
Y73: 67 | Z73: =Z$4 -> 0
Y74: 68 | Z74: 0
Y75: 69 | Z75: 0
Y76: 70 | Z76: 0
Y77: 71 | Z77: 0
Y78: 72 | Z78: 0
Y79: 73 | Z79: 0
Y80: 74 | Z80: 0
Y81: 75 | Z81: 0
Y82: 76 | Z82: 0
Y83: 77 | Z83: 0
Y84: 78 | Z84: 0
Y85: 79 | Z85: 0 | AA85: =-PPMT(Z$3/12,Y85,Z$2*12,Z$1) ->  | AB85: =Z85-AA85 -> 
Y86: 80 | Z86: 0
Y87: 81 | Z87: 0
Y88: 82 | Z88: 0
Y89: 83 | Z89: 0
Y90: 84 | Z90: 0
Y91: 85 | Z91: 0
Y92: 86 | Z92: 0
Y93: 87 | Z93: 0
Y94: 88 | Z94: 0
Y95: 89 | Z95: 0
Y96: 90 | Z96: 0
Y97: 91 | Z97: 0
Y98: 92 | Z98: 0
Y99: 93 | Z99: 0
Y100: 94 | Z100: 0
Y101: 95 | Z101: 0
Y102: 96 | Z102: 0
Y103: 97 | Z103: 0
Y104: 98 | Z104: 0
Y105: 99 | Z105: 0
Y106: 100 | Z106: 0
Y107: 101 | Z107: 0
Y108: 102 | Z108: 0
Y109: 103 | Z109: 0
Y110: 104 | Z110: 0
Y111: 105 | Z111: 0
Y112: 106 | Z112: 0
Y113: 107 | Z113: 0
Y114: 108 | Z114: 0
Y115: 109 | Z115: 0
Y116: 110 | Z116: 0
Y117: 111 | Z117: 0
Y118: 112 | Z118: 0
Y119: 113 | Z119: 0
Y120: 114 | Z120: 0
Y121: 115 | Z121: 0
Y122: 116 | Z122: 0
Y123: 117 | Z123: 0
Y124: 118 | Z124: 0
Y125: 119 | Z125: 0
Y126: 120 | Z126: 0
Y127: 121 | Z127: 0
Y128: 122 | Z128: 0
Y129: 123 | Z129: 0
Y130: 124 | Z130: 0
Y131: 125 | Z131: 0
Y132: 126 | Z132: 0
Y133: 127 | Z133: 0
Y134: 128 | Z134: 0
Y135: 129 | Z135: 0
Y136: 130 | Z136: 0 | AC136: =AC135-AA136 -> 
Y137: 131 | Z137: =Z$4 -> 0
Y138: 132 | Z138: 0
Y139: 133 | Z139: 0
Y140: 134 | Z140: 0
Y141: 135 | Z141: 0
Y142: 136 | Z142: 0
Y143: 137 | Z143: 0
Y144: 138 | Z144: 0
Y145: 139 | Z145: 0
Y146: 140 | Z146: 0
Y147: 141 | Z147: 0
Y148: 142 | Z148: 0
Y149: 143 | Z149: 0 | AA149: =-PPMT(Z$3/12,Y149,Z$2*12,Z$1) ->  | AB149: =Z149-AA149 -> 
Y150: 144 | Z150: 0
Y151: 145 | Z151: 0
Y152: 146 | Z152: 0
Y153: 147 | Z153: 0
Y154: 148 | Z154: 0
Y155: 149 | Z155: 0
Y156: 150 | Z156: 0
Y157: 151 | Z157: 0
Y158: 152 | Z158: 0
Y159: 153 | Z159: 0
Y160: 154 | Z160: 0
Y161: 155 | Z161: 0
Y162: 156 | Z162: 0
Y163: 157 | Z163: 0
Y164: 158 | Z164: 0
Y165: 159 | Z165: 0
Y166: 160 | Z166: 0
Y167: 161 | Z167: 0
Y168: 162 | Z168: 0
Y169: 163 | Z169: 0
Y170: 164 | Z170: 0
Y171: 165 | Z171: 0
Y172: 166 | Z172: 0
Y173: 167 | Z173: 0
Y174: 168 | Z174: 0
Y175: 169 | Z175: 0
Y176: 170 | Z176: 0
Y177: 171 | Z177: 0
Y178: 172 | Z178: 0
Y179: 173 | Z179: 0
Y180: 174 | Z180: 0
Y181: 175 | Z181: 0
Y182: 176 | Z182: 0
Y183: 177 | Z183: 0
Y184: 178 | Z184: 0
Y185: 179 | Z185: 0
Y186: 180 | Z186: 0
Y187: 181 | Z187: 0
Y188: 182 | Z188: 0
Y189: 183 | Z189: 0
Y190: 184 | Z190: 0
Y191: 185 | Z191: 0
Y192: 186 | Z192: 0
Y193: 187 | Z193: 0
Y194: 188 | Z194: 0
Y195: 189 | Z195: 0
Y196: 190 | Z196: 0
Y197: 191 | Z197: 0
Y198: 192 | Z198: 0
Y199: 193 | Z199: 0
Y200: 194 | Z200: 0 | AC200: =AC199-AA200 -> 
... 400 more rows

Sheet nemocenska
A1: Výpočet výše nemocenského - sociálka
A2: podle zákona č. 187/2006 Sb.
A3: při vzniku dočasné pracovní neschopnosti (karantény) v roce 2012
A4: vložte údaje do zelených políček
A5: Počet kalendářních dnů pracovní neschopnosti1) | G5: =MIN(MAX(0,ROUND(H5,0)),380-14) -> 30 | H5: 30
A6: Vyměřovací základ | E6: denní = D nebo měsíční = M | F6: m | H6: =Vypocty1!AL98 -> 20000
A7: Denní vyměřovací základ pro nemocenské (DVZ ) neredukovaný | H7: =ROUND(IF(F6="D",H6,H6*12/365),2) -> 657.53
A8: orientačně odpovídá průměrnému měsíčnímu příjmu cca | H8: =H7*365/12 -> 19999.87083
A10: Počet kalendářních dnů pro náhradu mzdy | H10: =MIN($G$5,21) -> 21
A12: Počet kalendářních dnů nemocenského od 22. dne PN | H12: =MAX($G$5-21,0) -> 9
A13: Redukce DVZ
C14: do | D14: 838 | E14: redukce na | F14: 0.9 | G14: tj. na | H14: =ROUND(F14*MIN($H$7,D14),2) -> 591.78
A15: nad | B15: =+D14 -> 838 | C15: do | D15: 1257 | E15: redukce na | F15: 0.6 | G15: tj. na | H15: =ROUND(F15*IF($H$7>B15,MIN($H$7,B16)-B15,0),2) -> 0
A16: nad | B16: =+D15 -> 1257 | C16: do | D16: 2514 | E16: redukce na | F16: 0.3 | G16: tj. na | H16: =ROUND(F16*IF($H$7>B16,MIN($H$7,B17)-B16,0),2) -> 0
A17: nad | B17: =+D16 -> 2514 | C17: nezohledňuje se
F18: Redukovaný DVZ | H18: =ROUNDUP(+H14+H15+H16,0) -> 592
A19: Nemocenské od 22. dne | D19: 0.6 | E19: ="z "&TEXT($H$18,"# ###") -> z 592 | F19: ="tj. "&CEILING($H$18*$D$19,1)&" x "&H12&G20 -> tj. 356 x 9 dnů = | H19: =CEILING($H$18*$D$19,1)*H12 -> 3204
B20: NEMOCENSKÉ celkem | G20: =IF(H12=1," den =",IF(AND(H12<5,H12>0)," dny ="," dnů =")) -> dnů = | H20: =H19 -> 3204 | I20: =H20/H12 -> 356
A21: 1) počet kalendářních dnů od 1. dne pracovní neschopnosti.
A22: DVZ je průměr započitatelných příjmů připadajících na jeden kalendářní den v tzv. rozhodném období, což je doba zpravidla 12 kalendářních měsíců před měsícem, v němž vznikla dočasná pracovní neschopnost či jiná sociální událost.
A26: Výpočet výše NÁHRADY MZDY *) - zaměstnavatel
A27: podle zákona 262/2006 Sb.
A28: při dočasné pracovní neschopnosti nebo karanténě v době od 1. ledna 2012
A29: Vložit údaje do následujících zelených políček - počet hodin a průměrný hodinový výdělek
A30: Počet hodin pracovní neschopnosti (nemoci) pro náhradu mzdy **) | I30: 96
A31: Počet hodin karantény (od prvního dne) | I31: 0
A32: Průměrný hodinový výdělek (PHV) (je stejný pro nemoc i pro karanténu) | I32: =H6/172 -> 116.2790698
A33: Redukce PHV
C34: do | D34: 146.65 | F34: redukce na | G34: 0.9 | H34: tj. na | I34: =G34*MIN($I$32,D34) -> 104.6511628
A35: nad | B35: =+D34 -> 146.65 | C35: do | D35: 219.98 | F35: redukce na | G35: 0.6 | H35: tj. na | I35: =G35*IF($I$32>B35,MIN($I$32,B36)-B35,0) -> 0
A36: nad | B36: =+D35 -> 219.98 | C36: do | D36: 439.95 | F36: redukce na | G36: 0.3 | H36: tj. na | I36: =G36*IF(I$32>B36,MIN(I$32,B37)-B36,0) -> 0
A37: nad | B37: =+D36 -> 439.95 | C37: nezohledňuje se
E38: Redukovaný PHV | I38: =+I34+I35+I36 -> 104.6511628 | J38: =I38*I30/18 -> 558.1395349
B39: Náhrada mzdy (nemoc) | C39: =+I30 -> 96 | D39: hodin | E39: 0.6 | F39: ="z "&$I$13 -> z | G39: ="tj. "&($I$13*E39)&" x "&I30 -> tj. 0 x 96 | I39: =($I$13*E39)*I30 -> 0
B40: Karanténa od 1. dne | C40: =+I31 -> 0 | D40: hodin | E40: 0.6 | F40: ="z "&$I$13 -> z | G40: ="tj. "&($I$13*E40)&" x "&I31 -> tj. 0 x 0 | I40: =($I$13*E40)*I31 -> 0
A41: Celkem náhrada | C41: =+C39+C40 -> 96 | D41: hodin
A42: NÁHRADA MZDY (KARANTÉNA) | I42: =CEILING(I39+I40,1) -> 0
A43: *) poskytuje se pouze v době prvních 21 kalendářních dnů pracovní neschopnosti nebo karantény.
A44: **) počet hodin bez karenční doby, nevyplňuje se pro karanténu.

Sheet duchod
A57: narození | B57: =Vypocty1!AL10 -> 1980-06-05 | C57: =IF(YEAR(B57)>1977,1978,YEAR(B57)) -> 1978
A58: žena | B58: =Vypocty1!AL11 -> ne
A59: děti | B59: =Vypocty1!AL12 -> 0
C61: =IF(B58="ne",D70,IF(B59=0,G70,IF(B59=1,J70,IF(B59=2,M70,IF(B59>4,S70,P70))))) -> 32
C62: =IF(B58="ne",D71,IF(B59=0,G71,IF(B59=1,J71,IF(B59=2,M71,IF(B59>4,S71,P71))))) -> 67
C63: =IF(B58="ne",D72,IF(B59=0,G72,IF(B59=1,J72,IF(B59=2,M72,IF(B59>4,S72,P72))))) -> 2047-12-05
B69: muž | E69: žena | H69: žena | K69: žena | N69: žena | Q69: žena
B70: rok | C70: měsíc | D70: =YEAR(D72)-YEAR(NOW()) -> 32 | E70: rok | F70: měsíc | G70: =YEAR(G72)-YEAR(NOW()) -> 32 | H70: rok | I70: měsíc | J70: =YEAR(J72)-YEAR(NOW()) -> 32 | K70: rok | L70: měsíc | M70: =YEAR(M72)-YEAR(NOW()) -> 32 | N70: rok | O70: měsíc | P70: =YEAR(P72)-YEAR(NOW()) -> 32 | Q70: rok | R70: měsíc | S70: =YEAR(S72)-YEAR(NOW()) -> 32
D71: =YEAR(D72)-YEAR($B57) -> 67 | E71: 0 | F71: 0 | G71: =YEAR(G72)-YEAR($B57) -> 67 | H71: 1 | I71: 1 | J71: =YEAR(J72)-YEAR($B57) -> 67 | K71: 2 | L71: 2 | M71: =YEAR(M72)-YEAR($B57) -> 67 | N71: 3 | O71: 4 | P71: =YEAR(P72)-YEAR($B57) -> 67 | Q71: 5 | R71: 5 | S71: =YEAR(S72)-YEAR($B57) -> 67
C72: =VLOOKUP($C57,$A73:$S115,4,FALSE) -> 810 | D72: =EDATE($B57,C72) -> 2047-12-05 | F72: =VLOOKUP($C57,$A73:$S115,7,FALSE) -> 810 | G72: =EDATE($B57,F72) -> 2047-12-05 | I72: =VLOOKUP($C57,$A73:$S115,10,FALSE) -> 810 | J72: =EDATE($B57,I72) -> 2047-12-05 | L72: =VLOOKUP($C57,$A73:$S115,13,FALSE) -> 810 | M72: =EDATE($B57,L72) -> 2047-12-05 | O72: =VLOOKUP($C57,$A73:$S115,16,FALSE) -> 810 | P72: =EDATE($B57,O72) -> 2047-12-05 | R72: =VLOOKUP($C57,$A73:$S115,19,FALSE) -> 810 | S72: =EDATE($B57,R72) -> 2047-12-05
A73: 1936 | B73: 60 | C73: 2 | D73: =12*B73+C73 -> 722 | E73: 57 | F73: 0 | G73: =12*E73+F73 -> 684 | H73: 56 | I73: 0 | J73: =12*H73+I73 -> 672 | K73: 55 | L73: 0 | M73: =12*K73+L73 -> 660 | N73: 54 | O73: 0 | P73: =12*N73+O73 -> 648 | Q73: 53 | R73: 0 | S73: =12*Q73+R73 -> 636
A74: 1937 | B74: 60 | C74: 4 | D74: =12*B74+C74 -> 724 | E74: 57 | F74: 0 | G74: =12*E74+F74 -> 684 | H74: 56 | I74: 0 | J74: =12*H74+I74 -> 672 | K74: 55 | L74: 0 | M74: =12*K74+L74 -> 660 | N74: 54 | O74: 0 | P74: =12*N74+O74 -> 648 | Q74: 53 | R74: 0 | S74: =12*Q74+R74 -> 636
A75: 1938 | B75: 60 | C75: 6 | D75: 726 | E75: 57 | F75: 0 | G75: 684 | H75: 56 | I75: 0 | J75: 672 | K75: 55 | L75: 0 | M75: 660 | N75: 54 | O75: 0 | P75: 648 | Q75: 53 | R75: 0 | S75: 636
A76: 1939 | B76: 60 | C76: 8 | D76: 728 | E76: 57 | F76: 4 | G76: 688 | H76: 56 | I76: 0 | J76: 672 | K76: 55 | L76: 0 | M76: 660 | N76: 54 | O76: 0 | P76: 648 | Q76: 53 | R76: 0 | S76: 636
A77: 1940 | B77: 60 | C77: 10 | D77: 730 | E77: 57 | F77: 8 | G77: 692 | H77: 56 | I77: 4 | J77: 676 | K77: 55 | L77: 0 | M77: 660 | N77: 54 | O77: 0 | P77: 648 | Q77: 53 | R77: 0 | S77: 636
A78: 1941 | B78: 61 | C78: 0 | D78: 732 | E78: 58 | F78: 0 | G78: 696 | H78: 56 | I78: 8 | J78: 680 | K78: 55 | L78: 4 | M78: 664 | N78: 54 | O78: 0 | P78: 648 | Q78: 53 | R78: 0 | S78: 636
A79: 1942 | B79: 61 | C79: 2 | D79: 734 | E79: 58 | F79: 4 | G79: 700 | H79: 57 | I79: 0 | J79: 684 | K79: 55 | L79: 8 | M79: 668 | N79: 54 | O79: 4 | P79: 652 | Q79: 53 | R79: 0 | S79: 636
A80: 1943 | B80: 61 | C80: 4 | D80: 736 | E80: 58 | F80: 8 | G80: 704 | H80: 57 | I80: 4 | J80: 688 | K80: 56 | L80: 0 | M80: 672 | N80: 54 | O80: 8 | P80: 656 | Q80: 53 | R80: 4 | S80: 640
A81: 1944 | B81: 61 | C81: 6 | D81: 738 | E81: 59 | F81: 0 | G81: 708 | H81: 57 | I81: 8 | J81: 692 | K81: 56 | L81: 4 | M81: 676 | N81: 55 | O81: 0 | P81: 660 | Q81: 53 | R81: 8 | S81: 644
A82: 1945 | B82: 61 | C82: 8 | D82: 740 | E82: 59 | F82: 4 | G82: 712 | H82: 58 | I82: 0 | J82: 696 | K82: 56 | L82: 8 | M82: 680 | N82: 55 | O82: 4 | P82: 664 | Q82: 54 | R82: 0 | S82: 648
A83: 1946 | B83: 61 | C83: 10 | D83: 742 | E83: 59 | F83: 8 | G83: 716 | H83: 58 | I83: 4 | J83: 700 | K83: 57 | L83: 0 | M83: 684 | N83: 55 | O83: 8 | P83: 668 | Q83: 54 | R83: 4 | S83: 652
A84: 1947 | B84: 62 | C84: 0 | D84: 744 | E84: 60 | F84: 0 | G84: 720 | H84: 58 | I84: 8 | J84: 704 | K84: 57 | L84: 4 | M84: 688 | N84: 56 | O84: 0 | P84: 672 | Q84: 54 | R84: 8 | S84: 656
A85: 1948 | B85: 62 | C85: 2 | D85: 746 | E85: 60 | F85: 4 | G85: 724 | H85: 59 | I85: 0 | J85: 708 | K85: 57 | L85: 8 | M85: 692 | N85: 56 | O85: 4 | P85: 676 | Q85: 55 | R85: 0 | S85: 660
A86: 1949 | B86: 62 | C86: 4 | D86: 748 | E86: 60 | F86: 8 | G86: 728 | H86: 59 | I86: 4 | J86: 712 | K86: 58 | L86: 0 | M86: 696 | N86: 56 | O86: 8 | P86: 680 | Q86: 55 | R86: 4 | S86: 664
A87: 1950 | B87: 62 | C87: 6 | D87: 750 | E87: 61 | F87: 0 | G87: 732 | H87: 59 | I87: 8 | J87: 716 | K87: 58 | L87: 4 | M87: 700 | N87: 57 | O87: 0 | P87: 684 | Q87: 55 | R87: 8 | S87: 668
A88: 1951 | B88: 62 | C88: 8 | D88: 752 | E88: 61 | F88: 4 | G88: 736 | H88: 60 | I88: 0 | J88: 720 | K88: 58 | L88: 8 | M88: 704 | N88: 57 | O88: 4 | P88: 688 | Q88: 56 | R88: 0 | S88: 672
A89: 1952 | B89: 62 | C89: 10 | D89: 754 | E89: 61 | F89: 8 | G89: 740 | H89: 60 | I89: 4 | J89: 724 | K89: 59 | L89: 0 | M89: 708 | N89: 57 | O89: 8 | P89: 692 | Q89: 56 | R89: 4 | S89: 676
A90: 1953 | B90: 63 | C90: 0 | D90: 756 | E90: 62 | F90: 0 | G90: 744 | H90: 60 | I90: 8 | J90: 728 | K90: 59 | L90: 4 | M90: 712 | N90: 58 | O90: 0 | P90: 696 | Q90: 56 | R90: 8 | S90: 680
A91: 1954 | B91: 63 | C91: 2 | D91: 758 | E91: 62 | F91: 4 | G91: 748 | H91: 61 | I91: 0 | J91: 732 | K91: 59 | L91: 8 | M91: 716 | N91: 58 | O91: 4 | P91: 700 | Q91: 57 | R91: 0 | S91: 684
A92: 1955 | B92: 63 | C92: 4 | D92: 760 | E92: 62 | F92: 8 | G92: 752 | H92: 61 | I92: 4 | J92: 736 | K92: 60 | L92: 0 | M92: 720 | N92: 58 | O92: 8 | P92: 704 | Q92: 57 | R92: 4 | S92: 688
A93: 1956 | B93: 63 | C93: 6 | D93: 762 | E93: 63 | F93: 2 | G93: 758 | H93: 61 | I93: 8 | J93: 740 | K93: 60 | L93: 4 | M93: 724 | N93: 59 | O93: 0 | P93: 708 | Q93: 57 | R93: 8 | S93: 692
A94: 1957 | B94: 63 | C94: 8 | D94: 764 | E94: 63 | F94: 8 | G94: 764 | H94: 62 | I94: 2 | J94: 746 | K94: 60 | L94: 8 | M94: 728 | N94: 59 | O94: 4 | P94: 712 | Q94: 58 | R94: 0 | S94: 696
A95: 1958 | B95: 63 | C95: 10 | D95: 766 | E95: 63 | F95: 10 | G95: 766 | H95: 62 | I95: 8 | J95: 752 | K95: 61 | L95: 2 | M95: 734 | N95: 59 | O95: 8 | P95: 716 | Q95: 58 | R95: 4 | S95: 700
A96: 1959 | B96: 64 | C96: 0 | D96: 768 | E96: 64 | F96: 0 | G96: 768 | H96: 63 | I96: 2 | J96: 758 | K96: 61 | L96: 8 | M96: 740 | N96: 60 | O96: 2 | P96: 722 | Q96: 58 | R96: 8 | S96: 704
A97: 1960 | B97: 64 | C97: 2 | D97: 770 | E97: 64 | F97: 2 | G97: 770 | H97: 63 | I97: 8 | J97: 764 | K97: 62 | L97: 2 | M97: 746 | N97: 60 | O97: 8 | P97: 728 | Q97: 59 | R97: 2 | S97: 710
A98: 1961 | B98: 64 | C98: 4 | D98: 772 | E98: 64 | F98: 4 | G98: 772 | H98: 64 | I98: 2 | J98: 770 | K98: 62 | L98: 8 | M98: 752 | N98: 61 | O98: 2 | P98: 734 | Q98: 59 | R98: 8 | S98: 716
A99: 1962 | B99: 64 | C99: 6 | D99: 774 | E99: 64 | F99: 6 | G99: 774 | H99: 64 | I99: 6 | J99: 774 | K99: 63 | L99: 2 | M99: 758 | N99: 61 | O99: 8 | P99: 740 | Q99: 60 | R99: 2 | S99: 722
A100: 1963 | B100: 64 | C100: 8 | D100: 776 | E100: 64 | F100: 8 | G100: 776 | H100: 64 | I100: 8 | J100: 776 | K100: 63 | L100: 8 | M100: 764 | N100: 62 | O100: 2 | P100: 746 | Q100: 60 | R100: 8 | S100: 728
A101: 1964 | B101: 64 | C101: 10 | D101: 778 | E101: 64 | F101: 10 | G101: 778 | H101: 64 | I101: 10 | J101: 778 | K101: 64 | L101: 2 | M101: 770 | N101: 62 | O101: 8 | P101: 752 | Q101: 61 | R101: 2 | S101: 734
A102: 1965 | B102: 65 | C102: 0 | D102: 780 | E102: 65 | F102: 0 | G102: 780 | H102: 65 | I102: 0 | J102: 780 | K102: 64 | L102: 8 | M102: 776 | N102: 63 | O102: 2 | P102: 758 | Q102: 61 | R102: 8 | S102: 740
A103: 1966 | B103: 65 | C103: 2 | D103: 782 | E103: 65 | F103: 2 | G103: 782 | H103: 65 | I103: 2 | J103: 782 | K103: 65 | L103: 2 | M103: 782 | N103: 63 | O103: 8 | P103: 764 | Q103: 62 | R103: 2 | S103: 746
A104: 1967 | B104: 65 | C104: 4 | D104: 784 | E104: 65 | F104: 4 | G104: 784 | H104: 65 | I104: 4 | J104: 784 | K104: 65 | L104: 4 | M104: 784 | N104: 64 | O104: 2 | P104: 770 | Q104: 62 | R104: 8 | S104: 752
A105: 1968 | B105: 65 | C105: 6 | D105: 786 | E105: 65 | F105: 6 | G105: 786 | H105: 65 | I105: 6 | J105: 786 | K105: 65 | L105: 6 | M105: 786 | N105: 64 | O105: 8 | P105: 776 | Q105: 63 | R105: 2 | S105: 758
A106: 1969 | B106: 65 | C106: 8 | D106: 788 | E106: 65 | F106: 8 | G106: 788 | H106: 65 | I106: 8 | J106: 788 | K106: 65 | L106: 8 | M106: 788 | N106: 65 | O106: 2 | P106: 782 | Q106: 63 | R106: 8 | S106: 764
A107: 1970 | B107: 65 | C107: 10 | D107: 790 | E107: 65 | F107: 10 | G107: 790 | H107: 65 | I107: 10 | J107: 790 | K107: 65 | L107: 10 | M107: 790 | N107: 65 | O107: 8 | P107: 788 | Q107: 64 | R107: 2 | S107: 770
A108: 1971 | B108: 66 | C108: 0 | D108: 792 | E108: 66 | F108: 0 | G108: 792 | H108: 66 | I108: 0 | J108: 792 | K108: 66 | L108: 0 | M108: 792 | N108: 66 | O108: 0 | P108: 792 | Q108: 64 | R108: 8 | S108: 776
A109: 1972 | B109: 66 | C109: 2 | D109: 794 | E109: 66 | F109: 2 | G109: 794 | H109: 66 | I109: 2 | J109: 794 | K109: 66 | L109: 2 | M109: 794 | N109: 66 | O109: 2 | P109: 794 | Q109: 65 | R109: 2 | S109: 782
A110: 1973 | B110: 66 | C110: 4 | D110: 796 | E110: 66 | F110: 4 | G110: 796 | H110: 66 | I110: 4 | J110: 796 | K110: 66 | L110: 4 | M110: 796 | N110: 66 | O110: 4 | P110: 796 | Q110: 65 | R110: 8 | S110: 788
A111: 1974 | B111: 66 | C111: 6 | D111: 798 | E111: 66 | F111: 6 | G111: 798 | H111: 66 | I111: 6 | J111: 798 | K111: 66 | L111: 6 | M111: 798 | N111: 66 | O111: 6 | P111: 798 | Q111: 66 | R111: 2 | S111: 794
A112: 1975 | B112: 66 | C112: 8 | D112: 800 | E112: 66 | F112: 8 | G112: 800 | H112: 66 | I112: 8 | J112: 800 | K112: 66 | L112: 8 | M112: 800 | N112: 66 | O112: 8 | P112: 800 | Q112: 66 | R112: 8 | S112: 800
A113: 1976 | B113: 66 | C113: 10 | D113: 802 | E113: 66 | F113: 10 | G113: 802 | H113: 66 | I113: 10 | J113: 802 | K113: 66 | L113: 10 | M113: 802 | N113: 66 | O113: 10 | P113: 802 | Q113: 66 | R113: 10 | S113: 802
A114: 1977 | B114: 67 | C114: 0 | D114: 804 | E114: 67 | F114: 0 | G114: 804 | H114: 67 | I114: 0 | J114: 804 | K114: 67 | L114: 0 | M114: 804 | N114: 67 | O114: 0 | P114: 804 | Q114: 67 | R114: 0 | S114: 804
A115: 1978 | B115: 67 | C115: =2*C118 -> 6 | D115: =12*B115+C115 -> 810 | E115: 67 | F115: =2*F118 -> 6 | G115: 810 | H115: 67 | I115: =2*I118 -> 6 | J115: 810 | K115: 67 | L115: =2*L118 -> 6 | M115: =12*K115+L115 -> 810 | N115: 67 | O115: =2*O118 -> 6 | P115: 810 | Q115: 67 | R115: =2*R118 -> 6 | S115: 810
C116: =YEAR(B57) -> 1980 | F116: =YEAR(B57) -> 1980 | I116: =YEAR(B57) -> 1980 | L116: =YEAR(B57) -> 1980 | O116: =YEAR(B57) -> 1980 | R116: =YEAR(B57) -> 1980
C117: 1977 | F117: 1977 | I117: 1977 | L117: 1977 | O117: 1977 | R117: 1977
C118: =C116-C117 -> 3 | F118: =F116-F117 -> 3 | I118: =I116-I117 -> 3 | L118: =L116-L117 -> 3 | O118: =O116-O117 -> 3 | R118: =R116-R117 -> 3
